[Event "Titled Tuesday Blitz August 15 Early 2023"]
[White "Sava, Christiansen-Danut-Eugen"]
[Black "Saucey, Michel"]
[WhiteFideId "1210114"]
[BlackFideId "601845"]
[WhiteElo "2129"]
[BlackElo "2278"]
[Result "1-0"]
[Round "9"]
[TimeControl "180+1"]
[Date "2023.08.15"]
[WhiteClock "0:01:18"]
[BlackClock "0:01:13"]
[Board "157"]

1. d4 {[%clk 0:03:00]}  d5 {[%clk 0:02:58]} 2. c4 {[%clk 0:02:59]}  e6 {[%clk 0:02:59]} 3. g3 {[%clk 0:02:57]}  Nf6 {[%clk 0:02:58]} 4. Bg2 {[%clk 0:02:56]}  Bb4+ {[%clk 0:02:57]} 5. Bd2 {[%clk 0:02:50]}  Bd6 {[%clk 0:02:57]} 6. Nf3 {[%clk 0:02:46]}  O-O {[%clk 0:02:56]} 7. Qc2 {[%clk 0:02:45]}  c6 {[%clk 0:02:55]} 8. O-O {[%clk 0:02:44]}  Ne4 {[%clk 0:02:51]} 9. Nc3 {[%clk 0:02:42]}  f5 {[%clk 0:02:50]} 10. Ne5 {[%clk 0:02:26]}  Nd7 {[%clk 0:02:49]} 11. f4 {[%clk 0:02:21]}  Ndf6 {[%clk 0:02:34]} 12. c5 {[%clk 0:02:16]}  Bc7 {[%clk 0:02:32]} 13. Nxe4 {[%clk 0:02:14]}  Nxe4 {[%clk 0:02:30]} 14. Bxe4 {[%clk 0:02:11]}  dxe4 {[%clk 0:02:27]} 15. e3 {[%clk 0:02:11]}  Qd5 {[%clk 0:02:26]} 16. Qc4 {[%clk 0:02:06]}  Qxc4 {[%clk 0:01:34]} 17. Nxc4 {[%clk 0:02:07]}  Bd7 {[%clk 0:01:34]} 18. b4 {[%clk 0:02:04]}  Kf7 {[%clk 0:01:24]} 19. a4 {[%clk 0:01:57]}  a6 {[%clk 0:01:23]} 20. a5 {[%clk 0:01:39]}  Ke7 {[%clk 0:01:22]} 21. Nb6 {[%clk 0:01:19]}  Be8 {[%clk 0:01:13]} 22. Nxa8 {[%clk 0:01:18]} 1-0


[Site "https://www.chess.com"]

[Event "Titled Tuesday Blitz August 15 Early 2023"]
[White "Stangl, Anita, Dr."]
[Black "Ai, Evan"]
[WhiteFideId "4608801"]
[BlackFideId "2094770"]
[WhiteElo "2094"]
[BlackElo "2271"]
[Result "1-0"]
[Round "9"]
[TimeControl "180+1"]
[Date "2023.08.15"]
[WhiteClock "0:00:08"]
[BlackClock "0:00:07"]
[Board "158"]

1. e4 {[%clk 0:03:00]}  e5 {[%clk 0:02:52]} 2. Nf3 {[%clk 0:03:00]}  Nc6 {[%clk 0:02:52]} 3. Bc4 {[%clk 0:02:58]}  Nf6 {[%clk 0:02:51]} 4. Ng5 {[%clk 0:02:58]}  d5 {[%clk 0:02:51]} 5. exd5 {[%clk 0:02:58]}  Na5 {[%clk 0:02:50]} 6. Bb5+ {[%clk 0:02:59]}  c6 {[%clk 0:02:50]} 7. dxc6 {[%clk 0:02:59]}  bxc6 {[%clk 0:02:51]} 8. Be2 {[%clk 0:03:00]}  h6 {[%clk 0:02:49]} 9. Nf3 {[%clk 0:03:00]}  e4 {[%clk 0:02:42]} 10. Ne5 {[%clk 0:03:01]}  Bd6 {[%clk 0:02:41]} 11. f4 {[%clk 0:02:59]}  exf3 {[%clk 0:02:24]} 12. Nxf3 {[%clk 0:02:58]}  O-O {[%clk 0:02:23]} 13. O-O {[%clk 0:02:58]}  Qb6+ {[%clk 0:02:20]} 14. d4 {[%clk 0:02:56]}  Bf5 {[%clk 0:02:14]} 15. c4 {[%clk 0:02:52]}  c5 {[%clk 0:02:10]} 16. d5 {[%clk 0:02:49]}  Qc7 {[%clk 0:02:08]} 17. Bd2 {[%clk 0:02:41]}  Nb7 {[%clk 0:01:58]} 18. Nc3 {[%clk 0:02:36]}  a6 {[%clk 0:01:56]} 19. h3 {[%clk 0:02:30]}  Rfe8 {[%clk 0:01:48]} 20. Nh4 {[%clk 0:02:22]}  Bh7 {[%clk 0:01:46]} 21. Rxf6 {[%clk 0:02:14]}  gxf6 {[%clk 0:01:45]} 22. Bxh6 {[%clk 0:02:14]}  Bf4 {[%clk 0:01:41]} 23. Bxf4 {[%clk 0:01:56]}  Qxf4 {[%clk 0:01:42]} 24. Nf3 {[%clk 0:01:56]}  Nd6 {[%clk 0:01:34]} 25. Kh1 {[%clk 0:01:53]}  Nf5 {[%clk 0:01:32]} 26. Bd3 {[%clk 0:01:44]}  Ng3+ {[%clk 0:01:20]} 27. Kg1 {[%clk 0:01:44]}  Qe3+ {[%clk 0:01:12]} 28. Kh2 {[%clk 0:01:40]}  Bxd3 {[%clk 0:01:02]} 29. Kxg3 {[%clk 0:01:40]}  Kh8 {[%clk 0:00:59]} 30. Qd2 {[%clk 0:01:28]}  Rg8+ {[%clk 0:00:54]} 31. Kh2 {[%clk 0:01:28]}  Qxd2 {[%clk 0:00:47]} 32. Nxd2 {[%clk 0:01:28]}  Rge8 {[%clk 0:00:36]} 33. b3 {[%clk 0:01:17]}  Re5 {[%clk 0:00:35]} 34. Na4 {[%clk 0:01:13]}  Rc8 {[%clk 0:00:33]} 35. Nf3 {[%clk 0:01:06]}  Re2 {[%clk 0:00:32]} 36. Rd1 {[%clk 0:00:53]}  Be4 {[%clk 0:00:29]} 37. Kg3 {[%clk 0:00:47]}  Rg8+ {[%clk 0:00:27]} 38. Kf4 {[%clk 0:00:46]}  Rgxg2 {[%clk 0:00:11]} 39. Nc3 {[%clk 0:00:45]}  Bxf3 {[%clk 0:00:07]} 40. Nxe2 {[%clk 0:00:42]}  Bxe2 {[%clk 0:00:08]} 41. Rd2 {[%clk 0:00:36]}  Bf1 {[%clk 0:00:05]} 42. Rd1 {[%clk 0:00:28]}  Rf2+ {[%clk 0:00:05]} 43. Kg3 {[%clk 0:00:25]}  Rf5 {[%clk 0:00:05]} 44. d6 {[%clk 0:00:23]}  Rg5+ {[%clk 0:00:04]} 45. Kh4 {[%clk 0:00:17]}  Bxh3 {[%clk 0:00:03]} 46. Kxh3 {[%clk 0:00:17]}  Rg8 {[%clk 0:00:04]} 47. d7 {[%clk 0:00:16]}  Rd8 {[%clk 0:00:04]} 48. Kg4 {[%clk 0:00:16]}  Kg7 {[%clk 0:00:05]} 49. Kf5 {[%clk 0:00:16]}  a5 {[%clk 0:00:03]} 50. Rd6 {[%clk 0:00:16]}  a4 {[%clk 0:00:02]} 51. bxa4 {[%clk 0:00:15]}  Kf8 {[%clk 0:00:03]} 52. a5 {[%clk 0:00:09]}  Ke7 {[%clk 0:00:02]} 53. Rd5 {[%clk 0:00:08]}  Rxd7 {[%clk 0:00:01]} 54. Rxd7+ {[%clk 0:00:05]}  Kxd7 {[%clk 0:00:02]} 55. Kxf6 {[%clk 0:00:05]}  Kc6 {[%clk 0:00:03]} 56. Kxf7 {[%clk 0:00:06]}  Kb7 {[%clk 0:00:04]} 57. Ke6 {[%clk 0:00:06]}  Ka6 {[%clk 0:00:05]} 58. Kd5 {[%clk 0:00:06]}  Kxa5 {[%clk 0:00:05]} 59. Kxc5 {[%clk 0:00:06]}  Ka4 {[%clk 0:00:06]} 60. Kd6 {[%clk 0:00:07]}  Ka3 {[%clk 0:00:07]} 61. c5 {[%clk 0:00:07]}  Kxa2 {[%clk 0:00:07]} 62. c6 {[%clk 0:00:08]} 1-0


[Site "https://www.chess.com"]

[Event "Titled Tuesday Blitz August 15 Early 2023"]
[White "Kohler, Aran"]
[Black "Winkels, Marcel"]
[WhiteFideId "1002856"]
[BlackFideId "1003887"]
[WhiteElo "2243"]
[BlackElo "2087"]
[Result "1-0"]
[Round "9"]
[TimeControl "180+1"]
[Date "2023.08.15"]
[WhiteClock "0:00:34"]
[BlackClock "0:00:24"]
[Board "159"]

1. e4 {[%clk 0:02:58]}  c5 {[%clk 0:02:58]} 2. Nc3 {[%clk 0:02:56]}  e6 {[%clk 0:02:58]} 3. f4 {[%clk 0:02:52]}  a6 {[%clk 0:02:58]} 4. a4 {[%clk 0:02:48]}  d5 {[%clk 0:02:51]} 5. Nf3 {[%clk 0:02:42]}  Nf6 {[%clk 0:02:49]} 6. e5 {[%clk 0:02:42]}  Nfd7 {[%clk 0:02:49]} 7. d3 {[%clk 0:02:35]}  Nc6 {[%clk 0:02:44]} 8. g3 {[%clk 0:02:32]}  Be7 {[%clk 0:02:41]} 9. Bg2 {[%clk 0:02:32]}  O-O {[%clk 0:02:40]} 10. O-O {[%clk 0:02:32]}  f6 {[%clk 0:02:40]} 11. Qe1 {[%clk 0:02:21]}  fxe5 {[%clk 0:02:33]} 12. fxe5 {[%clk 0:02:14]}  Qc7 {[%clk 0:02:33]} 13. Bf4 {[%clk 0:02:13]}  h6 {[%clk 0:02:19]} 14. Nxd5 {[%clk 0:01:44]}  exd5 {[%clk 0:02:12]} 15. e6 {[%clk 0:01:44]}  Qd8 {[%clk 0:02:01]} 16. exd7 {[%clk 0:01:43]}  Bxd7 {[%clk 0:02:02]} 17. Ne5 {[%clk 0:01:36]}  Nxe5 {[%clk 0:01:49]} 18. Bxe5 {[%clk 0:01:30]}  Rxf1+ {[%clk 0:01:44]} 19. Qxf1 {[%clk 0:01:30]}  Bc6 {[%clk 0:01:35]} 20. d4 {[%clk 0:01:29]}  Qb6 {[%clk 0:01:22]} 21. Qf5 {[%clk 0:01:17]}  Be8 {[%clk 0:00:59]} 22. Bxd5+ {[%clk 0:01:11]}  Kh8 {[%clk 0:00:58]} 23. Rf1 {[%clk 0:01:03]}  Bg6 {[%clk 0:00:46]} 24. Qf4 {[%clk 0:00:46]}  Rf8 {[%clk 0:00:42]} 25. Qxh6+ {[%clk 0:00:38]}  Bh7 {[%clk 0:00:24]} 26. Bxg7# {[%clk 0:00:34]} 1-0


[Site "https://www.chess.com"]

[Event "Titled Tuesday Blitz August 15 Early 2023"]
[White "Navyblue1"]
[Black "AndresDelgado77"]
[WhiteElo "1966"]
[BlackElo "2240"]
[Result "1-0"]
[Round "9"]
[TimeControl "180+1"]
[Date "2023.08.15"]
[WhiteClock "0:00:14"]
[BlackClock "0:00:00"]
[Board "160"]

1. d4 {[%clk 0:03:00]}  Nf6 {[%clk 0:02:59]} 2. c4 {[%clk 0:03:00]}  e6 {[%clk 0:02:55]} 3. Nc3 {[%clk 0:02:56]}  d5 {[%clk 0:02:43]} 4. cxd5 {[%clk 0:02:55]}  exd5 {[%clk 0:02:43]} 5. Bg5 {[%clk 0:02:56]}  Be7 {[%clk 0:02:37]} 6. Qc2 {[%clk 0:02:54]}  O-O {[%clk 0:02:33]} 7. e3 {[%clk 0:02:54]}  Re8 {[%clk 0:02:31]} 8. Bd3 {[%clk 0:02:52]}  h6 {[%clk 0:02:30]} 9. Bh4 {[%clk 0:02:49]}  c6 {[%clk 0:02:24]} 10. Nge2 {[%clk 0:02:48]}  Nbd7 {[%clk 0:02:02]} 11. O-O {[%clk 0:02:46]}  Nf8 {[%clk 0:01:56]} 12. a3 {[%clk 0:02:11]}  a5 {[%clk 0:01:54]} 13. Rab1 {[%clk 0:02:09]}  N6d7 {[%clk 0:01:41]} 14. Bxe7 {[%clk 0:02:06]}  Qxe7 {[%clk 0:01:42]} 15. Ng3 {[%clk 0:02:05]}  g6 {[%clk 0:01:33]} 16. e4 {[%clk 0:01:59]}  dxe4 {[%clk 0:01:29]} 17. Ncxe4 {[%clk 0:01:56]}  Nf6 {[%clk 0:01:28]} 18. h3 {[%clk 0:01:43]}  Ne6 {[%clk 0:01:07]} 19. Qc3 {[%clk 0:01:22]}  Nd5 {[%clk 0:01:04]} 20. Qc4 {[%clk 0:01:14]}  f5 {[%clk 0:00:53]} 21. Nc3 {[%clk 0:00:51]}  Nb6 {[%clk 0:00:18]} 22. Qb3 {[%clk 0:00:47]}  Kg7 {[%clk 0:00:18]} 23. Qxb6 {[%clk 0:00:45]}  Qd6 {[%clk 0:00:15]} 24. Nge2 {[%clk 0:00:24]}  Rd8 {[%clk 0:00:13]} 25. Rbd1 {[%clk 0:00:20]}  f4 {[%clk 0:00:08]} 26. Be4 {[%clk 0:00:19]}  Ng5 {[%clk 0:00:07]} 27. f3 {[%clk 0:00:17]}  h5 {[%clk 0:00:04]} 28. Qc5 {[%clk 0:00:16]}  Qf6 {[%clk 0:00:03]} 29. Qe5 {[%clk 0:00:16]}  h4 {[%clk 0:00:03]} 30. Qxf6+ {[%clk 0:00:16]}  Kxf6 {[%clk 0:00:04]} 31. Nc1 {[%clk 0:00:15]}  Be6 {[%clk 0:00:03]} 32. Nd3 {[%clk 0:00:14]}  Bb3 {[%clk 0:00:03]} 33. Rde1 {[%clk 0:00:14]}  Rxd4 {[%clk 0:00:03]} 34. Nc5 {[%clk 0:00:14]}  b6 {[%clk 0:00:00]} 35. Nxb3 {[%clk 0:00:14]} 1-0


[Site "https://www.chess.com"]

[Event "Titled Tuesday Blitz August 15 Early 2023"]
[White "Rivas Garcia, Victor"]
[Black "Zepeda Berlanga, Jan Enrique"]
[WhiteFideId "2217740"]
[BlackFideId "5132355"]
[WhiteElo "2229"]
[BlackElo "1967"]
[Result "1-0"]
[Round "9"]
[TimeControl "180+1"]
[Date "2023.08.15"]
[WhiteClock "0:01:08"]
[BlackClock "0:00:00"]
[Board "161"]

1. e4 {[%clk 0:02:58]}  c5 {[%clk 0:02:59]} 2. Nc3 {[%clk 0:02:57]}  d6 {[%clk 0:02:57]} 3. f4 {[%clk 0:02:56]}  Nc6 {[%clk 0:02:56]} 4. Nf3 {[%clk 0:02:56]}  Nf6 {[%clk 0:02:54]} 5. Bb5 {[%clk 0:02:56]}  Bd7 {[%clk 0:02:51]} 6. O-O {[%clk 0:02:55]}  g6 {[%clk 0:02:50]} 7. Bxc6 {[%clk 0:02:55]}  Bxc6 {[%clk 0:02:50]} 8. d3 {[%clk 0:02:55]}  Bg7 {[%clk 0:02:49]} 9. Qe1 {[%clk 0:02:55]}  O-O {[%clk 0:02:39]} 10. Qh4 {[%clk 0:02:54]}  Qd7 {[%clk 0:02:18]} 11. f5 {[%clk 0:02:52]}  gxf5 {[%clk 0:02:11]} 12. exf5 {[%clk 0:02:34]}  Qxf5 {[%clk 0:02:06]} 13. h3 {[%clk 0:02:29]}  Qh5 {[%clk 0:01:56]} 14. Qe1 {[%clk 0:02:20]}  e5 {[%clk 0:01:37]} 15. Qg3 {[%clk 0:01:51]}  Kh8 {[%clk 0:01:06]} 16. Ng5 {[%clk 0:01:49]}  h6 {[%clk 0:00:47]} 17. Nf3 {[%clk 0:01:47]}  Rae8 {[%clk 0:00:44]} 18. Nh4 {[%clk 0:01:44]}  d5 {[%clk 0:00:40]} 19. Rf5 {[%clk 0:01:42]}  Qxf5 {[%clk 0:00:10]} 20. Nxf5 {[%clk 0:01:41]}  Rg8 {[%clk 0:00:11]} 21. Qh4 {[%clk 0:01:37]}  h5 {[%clk 0:00:10]} 22. Nxg7 {[%clk 0:01:33]}  Kxg7 {[%clk 0:00:11]} 23. Qg5+ {[%clk 0:01:32]}  Kf8 {[%clk 0:00:09]} 24. Qxf6 {[%clk 0:01:33]}  Re6 {[%clk 0:00:10]} 25. Qf2 {[%clk 0:01:29]}  d4 {[%clk 0:00:10]} 26. Ne4 {[%clk 0:01:28]}  Reg6 {[%clk 0:00:10]} 27. Bd2 {[%clk 0:01:24]}  Bd7 {[%clk 0:00:08]} 28. Kh2 {[%clk 0:01:23]}  f5 {[%clk 0:00:04]} 29. Rf1 {[%clk 0:01:22]}  Ke8 {[%clk 0:00:03]} 30. Nxc5 {[%clk 0:01:22]}  Bc6 {[%clk 0:00:03]} 31. g3 {[%clk 0:01:18]}  f4 {[%clk 0:00:02]} 32. Bxf4 {[%clk 0:01:14]}  exf4 {[%clk 0:00:02]} 33. Qxf4 {[%clk 0:01:13]}  h4 {[%clk 0:00:03]} 34. g4 {[%clk 0:01:12]}  Kd8 {[%clk 0:00:00]} 35. Qf7 {[%clk 0:01:08]} 1-0


[Site "https://www.chess.com"]

[Event "Titled Tuesday Blitz August 15 Early 2023"]
[White "Mirzanurov, Bulat"]
[Black "Osiecki, Stanislaw"]
[WhiteFideId "4184521"]
[BlackFideId "1102990"]
[WhiteElo "2199"]
[BlackElo "2040"]
[Result "1/2-1/2"]
[Round "9"]
[TimeControl "180+1"]
[Date "2023.08.15"]
[WhiteClock "0:00:22"]
[BlackClock "0:00:39"]
[Board "163"]

1. e4 {[%clk 0:03:00]}  e6 {[%clk 0:02:55]} 2. d4 {[%clk 0:03:00]}  d5 {[%clk 0:02:55]} 3. Nc3 {[%clk 0:02:58]}  Bb4 {[%clk 0:02:52]} 4. e5 {[%clk 0:02:54]}  c5 {[%clk 0:02:52]} 5. a3 {[%clk 0:02:49]}  Bxc3+ {[%clk 0:02:52]} 6. bxc3 {[%clk 0:02:48]}  Qc7 {[%clk 0:02:53]} 7. Qg4 {[%clk 0:02:45]}  f5 {[%clk 0:02:53]} 8. Qg3 {[%clk 0:02:43]}  cxd4 {[%clk 0:02:53]} 9. cxd4 {[%clk 0:02:40]}  Ne7 {[%clk 0:02:53]} 10. c3 {[%clk 0:02:20]}  O-O {[%clk 0:02:50]} 11. Bd2 {[%clk 0:02:16]}  b6 {[%clk 0:02:51]} 12. Ne2 {[%clk 0:02:14]}  Ba6 {[%clk 0:02:51]} 13. Nf4 {[%clk 0:02:12]}  Qd7 {[%clk 0:02:51]} 14. Bd3 {[%clk 0:02:09]}  Bxd3 {[%clk 0:02:49]} 15. Qxd3 {[%clk 0:02:10]}  Nbc6 {[%clk 0:02:48]} 16. O-O {[%clk 0:02:06]}  Na5 {[%clk 0:02:48]} 17. h4 {[%clk 0:01:57]}  Nb3 {[%clk 0:02:47]} 18. Rab1 {[%clk 0:01:55]}  Nxd2 {[%clk 0:02:47]} 19. Qxd2 {[%clk 0:01:56]}  Rfc8 {[%clk 0:02:45]} 20. Rfc1 {[%clk 0:01:50]}  Rc4 {[%clk 0:02:44]} 21. Rb4 {[%clk 0:01:49]}  Rac8 {[%clk 0:02:43]} 22. Nd3 {[%clk 0:01:41]}  a5 {[%clk 0:02:41]} 23. Rxc4 {[%clk 0:01:40]}  Rxc4 {[%clk 0:02:39]} 24. Nb2 {[%clk 0:01:40]}  Rc8 {[%clk 0:02:37]} 25. c4 {[%clk 0:01:35]}  dxc4 {[%clk 0:02:32]} 26. Rxc4 {[%clk 0:01:23]}  Nd5 {[%clk 0:02:22]} 27. Qc2 {[%clk 0:01:08]}  Rxc4 {[%clk 0:02:04]} 28. Qxc4 {[%clk 0:01:09]}  b5 {[%clk 0:01:50]} 29. Qc5 {[%clk 0:01:08]}  h6 {[%clk 0:01:43]} 30. a4 {[%clk 0:00:57]}  bxa4 {[%clk 0:01:23]} 31. Qxa5 {[%clk 0:00:56]}  Nf4 {[%clk 0:01:17]} 32. Qxa4 {[%clk 0:00:45]}  Ne2+ {[%clk 0:01:10]} 33. Kf1 {[%clk 0:00:42]}  Qxa4 {[%clk 0:01:04]} 34. Nxa4 {[%clk 0:00:43]}  Nxd4 {[%clk 0:01:03]} 35. Nc5 {[%clk 0:00:39]}  Kf7 {[%clk 0:01:02]} 36. f4 {[%clk 0:00:38]}  g6 {[%clk 0:00:58]} 37. Kf2 {[%clk 0:00:38]}  h5 {[%clk 0:00:58]} 38. Ke3 {[%clk 0:00:37]}  Nc2+ {[%clk 0:00:58]} 39. Kd2 {[%clk 0:00:36]}  Nb4 {[%clk 0:00:55]} 40. Nb7 {[%clk 0:00:31]}  Nd5 {[%clk 0:00:52]} 41. g3 {[%clk 0:00:31]}  Ke7 {[%clk 0:00:49]} 42. Nc5 {[%clk 0:00:29]}  Nb4 {[%clk 0:00:47]} 43. Kc3 {[%clk 0:00:25]}  Nd5+ {[%clk 0:00:43]} 44. Kd2 {[%clk 0:00:22]}  Nb4 {[%clk 0:00:40]} 45. Kc3 {[%clk 0:00:21]}  Nd5+ {[%clk 0:00:39]} 46. Kd2 {[%clk 0:00:22]} 1/2-1/2


[Site "https://www.chess.com"]

[Event "Titled Tuesday Blitz August 15 Early 2023"]
[White "Grigoryan, Meri"]
[Black "Haszon, David"]
[WhiteFideId "13300571"]
[BlackFideId "733610"]
[WhiteElo "2116"]
[BlackElo "2461"]
[Result "0-1"]
[Round "9"]
[TimeControl "180+1"]
[Date "2023.08.15"]
[WhiteClock "0:00:21"]
[BlackClock "0:00:14"]
[Board "164"]

1. d4 {[%clk 0:03:00]}  Nf6 {[%clk 0:02:58]} 2. Nf3 {[%clk 0:03:00]}  b6 {[%clk 0:02:52]} 3. g3 {[%clk 0:02:58]}  Bb7 {[%clk 0:02:51]} 4. Bg2 {[%clk 0:02:59]}  e6 {[%clk 0:02:50]} 5. O-O {[%clk 0:02:59]}  Be7 {[%clk 0:02:47]} 6. c3 {[%clk 0:02:59]}  O-O {[%clk 0:02:45]} 7. Bg5 {[%clk 0:02:57]}  d6 {[%clk 0:02:39]} 8. Nbd2 {[%clk 0:02:57]}  Nbd7 {[%clk 0:02:39]} 9. Re1 {[%clk 0:02:55]}  Ne4 {[%clk 0:02:38]} 10. Bxe7 {[%clk 0:02:53]}  Qxe7 {[%clk 0:02:38]} 11. Nxe4 {[%clk 0:02:53]}  Bxe4 {[%clk 0:02:38]} 12. Nd2 {[%clk 0:02:53]}  Bxg2 {[%clk 0:02:36]} 13. Kxg2 {[%clk 0:02:54]}  c5 {[%clk 0:02:31]} 14. Nf3 {[%clk 0:02:49]}  d5 {[%clk 0:02:24]} 15. e4 {[%clk 0:02:49]}  dxe4 {[%clk 0:02:19]} 16. Rxe4 {[%clk 0:02:49]}  Rfd8 {[%clk 0:02:14]} 17. Qe1 {[%clk 0:02:37]}  Nf6 {[%clk 0:02:10]} 18. Re2 {[%clk 0:02:30]}  Rd5 {[%clk 0:02:07]} 19. dxc5 {[%clk 0:02:17]}  Qxc5 {[%clk 0:02:04]} 20. Rd1 {[%clk 0:02:14]}  Rad8 {[%clk 0:02:02]} 21. Red2 {[%clk 0:02:09]}  h6 {[%clk 0:01:45]} 22. Nd4 {[%clk 0:01:45]}  Kf8 {[%clk 0:00:56]} 23. Nf3 {[%clk 0:00:57]}  Qc4 {[%clk 0:00:46]} 24. Rxd5 {[%clk 0:00:52]}  Rxd5 {[%clk 0:00:43]} 25. Rxd5 {[%clk 0:00:52]}  Qxd5 {[%clk 0:00:39]} 26. b3 {[%clk 0:00:43]}  Qc6 {[%clk 0:00:35]} 27. c4 {[%clk 0:00:42]}  Ne4 {[%clk 0:00:29]} 28. Qb4+ {[%clk 0:00:40]}  Nc5 {[%clk 0:00:27]} 29. Qd2 {[%clk 0:00:36]}  Ke7 {[%clk 0:00:25]} 30. Qf4 {[%clk 0:00:34]}  Nd3 {[%clk 0:00:20]} 31. Qh4+ {[%clk 0:00:31]}  g5 {[%clk 0:00:19]} 32. Qd4 {[%clk 0:00:30]}  Ne1+ {[%clk 0:00:18]} 33. Kf1 {[%clk 0:00:25]}  Nxf3 {[%clk 0:00:18]} 34. Qg7 {[%clk 0:00:22]}  Nxh2+ {[%clk 0:00:18]} 35. Ke2 {[%clk 0:00:22]}  Qe4+ {[%clk 0:00:15]} 36. Kd2 {[%clk 0:00:22]}  Nf3+ {[%clk 0:00:15]} 37. Kc3 {[%clk 0:00:23]}  Qe1+ {[%clk 0:00:15]} 38. Kd3 {[%clk 0:00:22]}  Qd2+ {[%clk 0:00:14]} 39. Ke4 {[%clk 0:00:21]}  Qe2# {[%clk 0:00:14]} 0-1


[Site "https://www.chess.com"]

[Event "Titled Tuesday Blitz August 15 Early 2023"]
[White "Pein, Jonathan"]
[Black "Politov, Pavel Y."]
[WhiteFideId "417092"]
[BlackFideId "24110515"]
[WhiteElo "2422"]
[BlackElo "2081"]
[Result "1-0"]
[Round "9"]
[TimeControl "180+1"]
[Date "2023.08.15"]
[WhiteClock "0:00:33"]
[BlackClock "0:00:09"]
[Board "165"]

1. e4 {[%clk 0:03:00]}  c5 {[%clk 0:02:59]} 2. Nf3 {[%clk 0:03:00]}  d6 {[%clk 0:02:59]} 3. d4 {[%clk 0:02:50]}  cxd4 {[%clk 0:02:59]} 4. Nxd4 {[%clk 0:02:49]}  Nf6 {[%clk 0:02:58]} 5. Bb5+ {[%clk 0:02:49]}  Nbd7 {[%clk 0:02:48]} 6. Nc3 {[%clk 0:02:33]}  a6 {[%clk 0:02:46]} 7. Be2 {[%clk 0:02:33]}  e6 {[%clk 0:02:38]} 8. O-O {[%clk 0:02:34]}  Be7 {[%clk 0:02:37]} 9. f4 {[%clk 0:02:33]}  O-O {[%clk 0:02:36]} 10. Bf3 {[%clk 0:02:33]}  Qb6 {[%clk 0:02:24]} 11. Kh1 {[%clk 0:02:32]}  e5 {[%clk 0:02:19]} 12. Nf5 {[%clk 0:02:32]}  Re8 {[%clk 0:02:12]} 13. fxe5 {[%clk 0:02:31]}  Nxe5 {[%clk 0:02:05]} 14. Nxe7+ {[%clk 0:02:29]}  Rxe7 {[%clk 0:02:05]} 15. Bg5 {[%clk 0:02:30]}  Be6 {[%clk 0:01:43]} 16. Bxf6 {[%clk 0:02:28]}  gxf6 {[%clk 0:01:42]} 17. Qd2 {[%clk 0:02:26]}  Kg7 {[%clk 0:01:41]} 18. Be2 {[%clk 0:02:22]}  Rg8 {[%clk 0:01:39]} 19. Qf4 {[%clk 0:02:21]}  Kf8 {[%clk 0:01:18]} 20. Qxf6 {[%clk 0:02:19]}  Bg4 {[%clk 0:01:09]} 21. Nd5 {[%clk 0:02:10]}  Qd8 {[%clk 0:01:05]} 22. Qh6+ {[%clk 0:02:07]}  Rg7 {[%clk 0:01:00]} 23. Bxg4 {[%clk 0:01:46]}  Nxg4 {[%clk 0:00:58]} 24. Qf4 {[%clk 0:01:37]}  Re5 {[%clk 0:00:46]} 25. h3 {[%clk 0:01:35]}  Rh5 {[%clk 0:00:38]} 26. Kg1 {[%clk 0:01:33]}  Ne5 {[%clk 0:00:32]} 27. Qf2 {[%clk 0:01:15]}  Rxh3 {[%clk 0:00:30]} 28. Nf4 {[%clk 0:01:15]}  Qh4 {[%clk 0:00:16]} 29. Qxh4 {[%clk 0:01:01]}  Rxh4 {[%clk 0:00:16]} 30. Ne6+ {[%clk 0:01:01]}  Kg8 {[%clk 0:00:16]} 31. Nxg7 {[%clk 0:01:02]}  Kxg7 {[%clk 0:00:17]} 32. Rad1 {[%clk 0:01:02]}  Rxe4 {[%clk 0:00:16]} 33. Rxd6 {[%clk 0:01:02]}  Re2 {[%clk 0:00:16]} 34. Rd5 {[%clk 0:00:58]}  f6 {[%clk 0:00:14]} 35. Rc5 {[%clk 0:00:56]}  Ng4 {[%clk 0:00:12]} 36. Rc7+ {[%clk 0:00:44]}  Kg6 {[%clk 0:00:12]} 37. Rxb7 {[%clk 0:00:43]}  Ne3 {[%clk 0:00:12]} 38. Rf3 {[%clk 0:00:41]}  Rxg2+ {[%clk 0:00:10]} 39. Kh1 {[%clk 0:00:40]}  Re2 {[%clk 0:00:10]} 40. Rg3+ {[%clk 0:00:35]}  Kh6 {[%clk 0:00:10]} 41. Rb4 {[%clk 0:00:34]}  Re1+ {[%clk 0:00:09]} 42. Rg1 {[%clk 0:00:33]}  Re2 {[%clk 0:00:09]} 43. Rh4# {[%clk 0:00:33]} 1-0


[Site "https://www.chess.com"]

[Event "Titled Tuesday Blitz August 15 Early 2023"]
[White "White, John S."]
[Black "Mesa Cruz, Juan Carlos"]
[WhiteFideId "2502348"]
[BlackFideId "6423400"]
[WhiteElo "1996"]
[BlackElo "2407"]
[Result "0-1"]
[Round "9"]
[TimeControl "180+1"]
[Date "2023.08.15"]
[WhiteClock "0:00:33"]
[BlackClock "0:01:17"]
[Board "169"]

1. e4 {[%clk 0:02:58]}  c5 {[%clk 0:02:59]} 2. Nf3 {[%clk 0:02:57]}  d6 {[%clk 0:02:59]} 3. d4 {[%clk 0:02:56]}  cxd4 {[%clk 0:03:00]} 4. Nxd4 {[%clk 0:02:56]}  Nf6 {[%clk 0:03:00]} 5. Nc3 {[%clk 0:02:55]}  a6 {[%clk 0:03:01]} 6. Bg5 {[%clk 0:02:54]}  e6 {[%clk 0:02:52]} 7. f4 {[%clk 0:02:53]}  Be7 {[%clk 0:02:52]} 8. Qf3 {[%clk 0:02:52]}  Qc7 {[%clk 0:02:53]} 9. O-O-O {[%clk 0:02:48]}  Nbd7 {[%clk 0:02:51]} 10. Bd3 {[%clk 0:02:42]}  b5 {[%clk 0:02:51]} 11. e5 {[%clk 0:02:34]}  dxe5 {[%clk 0:02:45]} 12. fxe5 {[%clk 0:02:27]}  Bb7 {[%clk 0:02:34]} 13. Ne4 {[%clk 0:01:52]}  Nxe5 {[%clk 0:02:28]} 14. Qg3 {[%clk 0:01:50]}  Nxd3+ {[%clk 0:02:13]} 15. Rxd3 {[%clk 0:01:37]}  Qxg3 {[%clk 0:02:00]} 16. Nxf6+ {[%clk 0:01:24]}  gxf6 {[%clk 0:01:59]} 17. hxg3 {[%clk 0:01:15]}  fxg5 {[%clk 0:01:59]} 18. Nf3 {[%clk 0:01:00]}  Rd8 {[%clk 0:01:44]} 19. Rhd1 {[%clk 0:00:57]}  Rxd3 {[%clk 0:01:37]} 20. Rxd3 {[%clk 0:00:56]}  Bxf3 {[%clk 0:01:37]} 21. gxf3 {[%clk 0:00:56]}  h5 {[%clk 0:01:37]} 22. a4 {[%clk 0:00:50]}  h4 {[%clk 0:01:19]} 23. gxh4 {[%clk 0:00:48]}  gxh4 {[%clk 0:01:19]} 24. axb5 {[%clk 0:00:47]}  axb5 {[%clk 0:01:19]} 25. Rd1 {[%clk 0:00:41]}  h3 {[%clk 0:01:18]} 26. Rh1 {[%clk 0:00:41]}  h2 {[%clk 0:01:18]} 27. Kd2 {[%clk 0:00:41]}  Bd6 {[%clk 0:01:19]} 28. Kd3 {[%clk 0:00:41]}  Rg8 {[%clk 0:01:17]} 29. Ke3 {[%clk 0:00:37]}  Rg1 {[%clk 0:01:17]} 30. Rxh2 {[%clk 0:00:33]}  Bxh2 {[%clk 0:01:18]} 31. f4 {[%clk 0:00:33]}  Bxf4+ {[%clk 0:01:17]} 0-1


[Site "https://www.chess.com"]